fUST/lending_fUST_20250609
["ID","MTS","AMOUNT","RATE_DAILY","PERIOD"]
[365049424,1749427838850,-330.22982976,0.00019178,2]
[365049425,1749427838861,-850.98,0.00019178,2]
[365049426,1749427838871,-440.0,0.00019178,2]
[365049427,1749427838881,-430.0,0.00019178,2]
[365049428,1749427838891,-440.0,0.00019178,2]
[365049429,1749427838900,-440.0,0.00019178,2]
[365049430,1749427838909,-871.39,0.00019178,2]
[365049431,1749427838919,-546.33,0.00019178,2]
[365049432,1749427838928,-440.0,0.00019178,2]
[365049433,1749427838938,-1681.47,0.00019178,2]
[365049434,1749427838947,-827.14,0.00019178,2]
[365049435,1749427838957,-440.0,0.00019178,2]
[365049436,1749427838966,-440.0,0.00019178,2]
[365049437,1749427838975,-430.0,0.00019178,2]
[365049438,1749427838985,-440.0,0.00019178,2]
[365049439,1749427838994,-440.0,0.00019178,2]
[365049440,1749427839004,-440.0,0.00019178,2]
[365049441,1749427839013,-1292.07,0.00019178,2]
[365049442,1749427839024,-440.0,0.00019178,2]
[365049443,1749427839033,-440.0,0.00019178,2]
[365049444,1749427839043,-430.0,0.00019178,2]
[365049445,1749427839052,-440.0,0.00019178,2]
[365049446,1749427839062,-1616.2,0.00019178,2]
[365049447,1749427839072,-440.0,0.00019178,2]
[365049448,1749427839082,-440.0,0.00019178,2]
[365049449,1749427839092,-430.0,0.00019178,2]
[365049450,1749427839101,-1708.17,0.00019178,2]
[365049451,1749427839110,-430.0,0.00019178,2]
[365049452,1749427839120,-734.92,0.00019178,2]
[365049453,1749427839129,-440.0,0.00019178,2]
[365049454,1749427839138,-256.71,0.00019178,2]
[365049455,1749427839147,-430.0,0.00019178,2]
[365049456,1749427839156,-430.0,0.00019178,2]
[365049457,1749427839166,-430.0,0.00019178,2]
[365049458,1749427839176,-476.22,0.00019178,2]
[365049459,1749427839185,-430.0,0.00019178,2]
[365049460,1749427839195,-430.0,0.00019178,2]
[365049461,1749427839204,-440.0,0.00019178,2]
[365049462,1749427839214,-440.0,0.00019178,2]
[365049463,1749427839224,-430.0,0.00019178,2]
[365049464,1749427839234,-350.0,0.00019178,2]
[365049465,1749427839243,-440.0,0.00019178,2]
[365049466,1749427839252,-440.0,0.00019178,2]
[365049467,1749427839262,-814.94,0.00019178,2]
[365049468,1749427839272,-440.0,0.00019178,2]
[365049469,1749427839282,-430.0,0.00019178,2]
[365049470,1749427839292,-440.0,0.00019178,2]
[365049471,1749427839301,-440.0,0.00019178,2]
[365049472,1749427839311,-430.0,0.00019178,2]
[365049473,1749427839323,-430.0,0.00019178,2]
[365049474,1749427839332,-320.0,0.00019178,2]
[365049475,1749427839342,-440.0,0.00019178,2]
[365049476,1749427839352,-640.58,0.00019178,2]
[365049477,1749427839362,-440.0,0.00019178,2]
[365049478,1749427839372,-529.10878307,0.00019178,2]
[365049479,1749427839382,-440.0,0.00019178,2]
[365049480,1749427839391,-440.0,0.00019178,2]
[365049481,1749427839400,-440.0,0.00019178,2]
[365049482,1749427839410,-440.0,0.00019178,2]
[365049483,1749427839419,-1575.6933631,0.00019314,2]
[365049484,1749427839429,-180.45956591,0.00019352,2]
[365049485,1749427839438,-500.0,0.00019451,2]
[365049486,1749427839448,-440.0,0.00019452,2]
[365049487,1749427839458,-290.0,0.00019452,2]
[365049488,1749427839468,-360.0,0.00019452,2]
[365049489,1749427839478,-391.61886442,0.00019452,2]
[365049490,1749427839487,-358.14577533,0.00019452,2]
[365049491,1749427839497,-420.0,0.00019452,2]
[365049492,1749427839507,-440.0,0.00019452,2]
[365049493,1749427839516,-440.0,0.00019452,2]
[365049494,1749427839526,-440.0,0.00019452,2]
[365049495,1749427839536,-440.0,0.00019452,2]
[365049496,1749427839545,-440.0,0.00019452,2]
[365049497,1749427839555,-440.0,0.00019452,2]
[365049498,1749427839565,-430.0,0.00019452,2]
[365049499,1749427839577,-430.0,0.00019452,2]
[365049500,1749427839586,-430.0,0.00019452,2]
[365049501,1749427839596,-430.0,0.00019452,2]
[365049502,1749427839605,-150.3466422,0.00019452,2]
[365049503,1749427839614,-430.0,0.00019452,2]
[365049504,1749427839625,-420.0,0.00019452,2]
[365049505,1749427839635,-430.0,0.00019452,2]
[365049506,1749427839645,-430.0,0.00019452,2]
[365049507,1749427839655,-430.0,0.00019452,2]
[365049508,1749427839665,-430.0,0.00019452,2]
[365049509,1749427839675,-430.0,0.00019452,2]
[365049510,1749427839684,-440.0,0.00019452,2]
[365049511,1749427839694,-430.0,0.00019452,2]
[365049512,1749427839704,-430.0,0.00019452,2]
[365049513,1749427839713,-695.15,0.00019452,2]
[365049514,1749427839723,-1299.25,0.00019452,2]
[365049515,1749427839732,-581.46,0.00019452,2]
[365049516,1749427839746,-850.36,0.00019452,2]
[365049517,1749427839755,-292.39,0.00019452,2]
[365049518,1749427839765,-440.0,0.00019452,2]
[365049519,1749427839775,-440.0,0.00019452,2]
[365049520,1749427839784,-850.98,0.00019452,2]
[365049521,1749427839794,-440.0,0.00019452,2]
[365049522,1749427839804,-440.0,0.00019452,2]
[365049523,1749427839815,-871.39,0.00019452,2]
[365049524,1749427839827,-440.0,0.00019452,2]
[365049525,1749427839837,-1681.47,0.00019452,2]
[365049526,1749427839847,-827.14,0.00019452,2]
[365049527,1749427839857,-440.0,0.00019452,2]
[365049528,1749427839867,-440.0,0.00019452,2]
[365049529,1749427839877,-440.0,0.00019452,2]
[365049530,1749427839886,-1292.07,0.00019452,2]
[365049531,1749427839896,-440.0,0.00019452,2]
[365049532,1749427839906,-440.0,0.00019452,2]
[365049534,1749427839916,-440.0,0.00019452,2]
[365049535,1749427839926,-1616.2,0.00019452,2]
[365049537,1749427839936,-440.0,0.00019452,2]
[365049540,1749427839945,-440.0,0.00019452,2]
[365049542,1749427839955,-1708.17,0.00019452,2]
[365049544,1749427839965,-734.92,0.00019452,2]
[365049546,1749427839975,-480.18,0.00019452,2]
[365049548,1749427839984,-476.22,0.00019452,2]
[365049550,1749427839994,-440.0,0.00019452,2]
[365049552,1749427840003,-350.0,0.00019452,2]
[365049554,1749427840013,-440.0,0.00019452,2]
[365049555,1749427840023,-814.94,0.00019452,2]
[365049557,1749427840032,-640.58,0.00019452,2]
[365049560,1749427840042,-1575.6933631,0.00019521,2]
[365049562,1749427840052,-1000.0,0.00019721,2]
[365049564,1749427840061,-500.0,0.00019721,2]
[365049566,1749427840071,-287.8,0.00019726,2]
[365049568,1749427840080,-440.0,0.00019726,2]
[365049570,1749427840091,-440.0,0.00019726,2]
[365049571,1749427840100,-440.0,0.00019726,2]
[365049573,1749427840111,-440.0,0.00019726,2]
[365049576,1749427840121,-695.15,0.00019726,2]
[365049578,1749427840130,-1299.25,0.00019726,2]
[365049580,1749427840140,-581.46,0.00019726,2]
[365049582,1749427840150,-850.36,0.00019726,2]
[365049584,1749427840159,-440.0,0.00019726,2]
[365049586,1749427840168,-850.98,0.00019726,2]
[365049588,1749427840178,-440.0,0.00019726,2]
[365049590,1749427840187,-871.39,0.00019726,2]
[365049592,1749427840196,-440.0,0.00019726,2]
[365049594,1749427840207,-1681.47,0.00019726,2]
[365049596,1749427840216,-827.14,0.00019726,2]
[365049598,1749427840226,-440.0,0.00019726,2]
[365049600,1749427840235,-440.0,0.00019726,2]
[365049602,1749427840245,-1292.07,0.00019726,2]
[365049604,1749427840254,-184.99,0.00019726,2]
[365049606,1749427840264,-440.0,0.00019726,2]
[365049608,1749427840274,-1616.2,0.00019726,2]
[365049610,1749427840284,-440.0,0.00019726,2]
[365049612,1749427840294,-1708.17,0.00019726,2]
[365049614,1749427840304,-734.92,0.00019726,2]
[365049616,1749427840314,-476.22,0.00019726,2]
[365049618,1749427840327,-440.0,0.00019726,2]
[365049620,1749427840337,-350.0,0.00019726,2]
[365049622,1749427840348,-440.0,0.00019726,2]
[365049624,1749427840357,-814.94,0.00019726,2]
[365049626,1749427840367,-640.58,0.00019726,2]
[365049628,1749427840378,-1575.6933631,0.00019728,2]
[365049630,1749427840388,-385.0,0.00019735,2]
[365049632,1749427840398,-287.10717947,0.00019738,2]
[365049634,1749427840408,-1575.6933631,0.00019934,2]
[365049637,1749427840418,-200.0,0.0001998,2]
[365049639,1749427840427,-257.05092487,0.0002,2]
[365049641,1749427840437,-695.15,0.0002,2]
[365049642,1749427840446,-1299.25,0.0002,2]
[365049645,1749427840456,-581.46,0.0002,2]
[365049647,1749427840466,-850.36,0.0002,2]
[365049649,1749427840476,-440.0,0.0002,2]
[365049651,1749427840486,-850.98,0.0002,2]
[365049653,1749427840496,-440.0,0.0002,2]
[365049655,1749427840506,-871.39,0.0002,2]
[365049657,1749427840515,-440.0,0.0002,2]
[365049659,1749427840525,-1681.47,0.0002,2]
[365049661,1749427840534,-827.14,0.0002,2]
[365049663,1749427840543,-440.0,0.0002,2]
[365049665,1749427840553,-1292.07,0.0002,2]
[365049667,1749427840562,-1616.2,0.0002,2]
[365049669,1749427840575,-1708.17,0.0002,2]
[365049671,1749427840584,-734.92,0.0002,2]
[365049673,1749427840594,-476.22,0.0002,2]
[365049675,1749427840604,-440.0,0.0002,2]
[365049677,1749427840613,-180.10999925,0.0002,2]
[365049679,1749427840623,-440.0,0.0002,2]
[365049681,1749427840633,-814.94,0.0002,2]
[365049683,1749427840642,-640.58,0.0002,2]
[365049685,1749427840652,-186.466,0.00020132,2]
[365049687,1749427840661,-1575.6933631,0.00020141,2]
[365049689,1749427840671,-237.057897,0.00020187,2]
[365049691,1749427840682,-834.62475315,0.00020191,2]
[365049693,1749427840699,-160.0,0.00020191,2]
[365049695,1749427840709,-423.98131849,0.00020191,2]
[365049697,1749427840719,-842.5625,0.00020191,2]
[365049699,1749427840729,-213.05153702,0.00020191,2]
[365049701,1749427840738,-229.60437222,0.00020191,2]
[365049703,1749427840749,-160.0,0.00020191,2]
[365049705,1749427840758,-500.0,0.00020268,2]
[365049707,1749427840768,-695.15,0.00020273,2]
[365049709,1749427840778,-1299.25,0.00020273,2]
[365049711,1749427840789,-850.36,0.00020273,2]
[365049713,1749427840799,-581.46,0.00020273,2]
[365049716,1749427840808,-440.0,0.00020273,2]
[365049718,1749427840818,-850.98,0.00020273,2]
[365049720,1749427840830,-415.11,0.00020273,2]
[365049722,1749427840840,-871.39,0.00020273,2]
[365049725,1749427840860,-440.0,0.00020273,2]
[365049727,1749427840872,-1681.47,0.00020273,2]
[365049729,1749427840882,-827.14,0.00020273,2]
[365049731,1749427840892,-440.0,0.00020273,2]
[365049733,1749427840903,-1292.07,0.00020273,2]
[365049735,1749427840914,-1616.2,0.00020273,2]
[365049738,1749427840924,-1708.17,0.00020273,2]
[365049740,1749427840933,-734.92,0.00020273,2]
[365049742,1749427840943,-476.22,0.00020273,2]
[365049744,1749427840953,-440.0,0.00020273,2]
[365049746,1749427840963,-440.0,0.00020273,2]
[365049748,1749427840973,-814.94,0.00020273,2]
[365049750,1749427840983,-640.58,0.00020273,2]
[365049752,1749427840993,-1575.6933631,0.00020348,3]
[365049754,1749427841004,-444.64,0.00020493,2]
[365049756,1749427841013,-420.0,0.00020515,2]
[365049758,1749427841023,-420.0,0.00020518,2]
[365049760,1749427841033,-695.15,0.00020547,2]
[365049762,1749427841043,-500.0,0.00020547,2]
[365049781,1749427841205,-1299.25,0.00020547,2]
[365049783,1749427841217,-850.36,0.00020547,2]
[365049785,1749427841227,-581.46,0.00020547,2]
[365049787,1749427841237,-440.0,0.00020547,2]
[365049789,1749427841246,-850.98,0.00020547,2]
[365049791,1749427841256,-871.39,0.00020547,2]
[365049793,1749427841266,-440.0,0.00020547,2]
[365049795,1749427841276,-1681.47,0.00020547,2]
[365049797,1749427841286,-827.14,0.00020547,2]
[365049800,1749427841295,-440.0,0.00020547,2]
[365049802,1749427841305,-1292.07,0.00020547,2]
[365049804,1749427841314,-1616.2,0.00020547,2]
[365049806,1749427841325,-1708.17,0.00020547,2]
[365049808,1749427841335,-734.92,0.00020547,2]
[365049810,1749427841344,-476.22,0.00020547,2]
[365049812,1749427841354,-440.0,0.00020547,2]
[365049814,1749427841364,-814.94,0.00020547,2]
[365049816,1749427841374,-640.58,0.00020547,2]
[365049818,1749427841383,-1575.6933631,0.00020555,3]
[365049820,1749427841393,-485.61,0.000206,2]
[365049822,1749427841403,-1575.6933631,0.00020762,3]
[365049824,1749427841412,-695.15,0.00020821,2]
[365049826,1749427841426,-1299.25,0.00020821,2]
[365049829,1749427841436,-850.36,0.00020821,2]
[365049831,1749427841446,-581.46,0.00020821,2]
[365049833,1749427841455,-440.0,0.00020821,2]
[365049835,1749427841464,-850.98,0.00020821,2]
[365049837,1749427841474,-871.39,0.00020821,2]
[365049838,1749427841484,-440.0,0.00020821,2]
[365049839,1749427841494,-1681.47,0.00020821,2]
[365049840,1749427841504,-827.14,0.00020821,2]
[365049841,1749427841513,-440.0,0.00020821,2]
[365049842,1749427841523,-1292.07,0.00020821,2]
[365049843,1749427841533,-1616.2,0.00020821,2]
[365049844,1749427841542,-1708.17,0.00020821,2]
[365049845,1749427841552,-734.92,0.00020821,2]
[365049846,1749427841562,-476.22,0.00020821,2]
[365049847,1749427841572,-440.0,0.00020821,2]
[365049848,1749427841583,-814.94,0.00020821,2]
[365049849,1749427841592,-640.58,0.00020821,2]
[365049850,1749427841602,-300.0,0.0002088,2]
[365049851,1749427841611,-1575.6933631,0.00020969,4]
[365049852,1749427841621,-695.15,0.00021095,2]
[365049853,1749427841631,-500.0,0.00021095,3]
[365049854,1749427841640,-1299.25,0.00021095,2]
[365049855,1749427841650,-850.36,0.00021095,2]
[365049857,1749427841660,-581.46,0.00021095,2]
[365049859,1749427841670,-850.98,0.00021095,2]
[365049862,1749427841679,-871.39,0.00021095,2]
[365049864,1749427841689,-440.0,0.00021095,2]
[365049866,1749427841699,-1681.47,0.00021095,2]
[365049868,1749427841709,-827.14,0.00021095,2]
[365049870,1749427841718,-1292.07,0.00021095,2]
[365049872,1749427841728,-440.0,0.00021095,2]
[365049874,1749427841739,-1616.2,0.00021095,2]
[365049876,1749427841751,-1708.17,0.00021095,2]
[365049878,1749427841761,-734.92,0.00021095,2]
[365049880,1749427841770,-476.22,0.00021095,2]
[365049882,1749427841780,-440.0,0.00021095,2]
[365049884,1749427841789,-814.94,0.00021095,2]
[365049886,1749427841799,-640.58,0.00021095,2]
[365049888,1749427841809,-1575.6933631,0.00021176,4]
[365049890,1749427841818,-695.15,0.00021369,2]
[365049892,1749427841828,-1299.25,0.00021369,2]
[365049894,1749427841839,-850.36,0.00021369,2]
[365049896,1749427841849,-581.46,0.00021369,2]
[365049898,1749427841859,-850.98,0.00021369,2]
[365049900,1749427841869,-871.39,0.00021369,2]
[365049903,1749427841879,-164.7596522,0.00021369,2]
[365049905,1749427841889,-1681.47,0.00021369,2]
[365049907,1749427841899,-827.14,0.00021369,2]
[365049909,1749427841909,-1292.07,0.00021369,2]
[365049911,1749427841919,-440.0,0.00021369,2]
[365049913,1749427841929,-1616.2,0.00021369,2]
[365049915,1749427841939,-1708.17,0.00021369,2]
[365049917,1749427841949,-734.92,0.00021369,2]
[365049919,1749427841958,-476.22,0.00021369,2]
[365049921,1749427841969,-440.0,0.00021369,2]
[365049923,1749427841979,-814.94,0.00021369,2]
[365049926,1749427841990,-640.58,0.00021369,2]
[365049928,1749427841999,-1575.6933631,0.00021383,5]
[365049930,1749427842009,-151.0,0.00021406,2]
[365049932,1749427842018,-225.737208,0.00021406,2]
[365049934,1749427842030,-198.0,0.00021406,2]
[365049936,1749427842041,-151.0,0.00021406,2]
[365049938,1749427842051,-228.99856483,0.00021406,2]
[365049940,1749427842061,-151.0,0.00021433,2]
[365049942,1749427842072,-151.0,0.00021433,2]
[365049944,1749427842082,-378.14,0.000215,14]
[365049946,1749427842091,-180.45956589,0.00021559,2]
[365049948,1749427842102,-500.0,0.0002158,2]
[365049950,1749427842112,-1575.6933631,0.0002159,5]
[365049952,1749427842122,-695.15,0.00021643,2]
[365049954,1749427842132,-500.0,0.00021643,4]
[365049956,1749427842142,-1299.25,0.00021643,2]
[365049958,1749427842151,-850.36,0.00021643,2]
[365049960,1749427842162,-581.46,0.00021643,2]
[365049963,1749427842172,-850.98,0.00021643,2]
[365049965,1749427842181,-871.39,0.00021643,2]
[365049967,1749427842191,-1681.47,0.00021643,2]
[365049969,1749427842200,-827.14,0.00021643,2]
[365049971,1749427842209,-1292.07,0.00021643,2]
[365049973,1749427842219,-440.0,0.00021643,2]
[365049975,1749427842228,-1616.2,0.00021643,2]
[365049977,1749427842238,-1708.17,0.00021643,2]
[365049979,1749427842248,-734.92,0.00021643,2]
[365049981,1749427842258,-476.22,0.00021643,2]
[365049983,1749427842267,-440.0,0.00021643,2]
[365049985,1749427842277,-814.94,0.00021643,2]
[365049987,1749427842287,-640.58,0.00021643,2]
[365049989,1749427842296,-1575.6933631,0.00021797,6]
[365049991,1749427842307,-3000.0,0.000219,2]
[365049993,1749427842316,-485.61,0.000219,2]
[365049995,1749427842327,-3000.0,0.0002191,2]
[365049997,1749427842336,-500.0,0.00021917,2]
[365049999,1749427842346,-500.0,0.00021917,2]
[365050001,1749427842356,-500.0,0.00021917,2]
[365050004,1749427842365,-500.0,0.00021917,2]
[365050006,1749427842376,-500.0,0.00021917,2]
[365050008,1749427842386,-500.0,0.00021917,2]
[365050010,1749427842395,-500.0,0.00021917,2]
[365050012,1749427842405,-500.0,0.00021917,2]
[365050015,1749427842414,-370.14661911,0.00021917,2]
[365050018,1749427842424,-695.15,0.00021917,2]
[365050020,1749427842434,-1299.25,0.00021917,2]
[365050022,1749427842443,-581.46,0.00021917,2]
[365050024,1749427842453,-850.36,0.00021917,2]
[365050026,1749427842463,-850.98,0.00021917,2]
[365050028,1749427842473,-871.39,0.00021917,2]
[365050030,1749427842482,-1681.47,0.00021917,2]
[365050032,1749427842492,-827.14,0.00021917,2]
[365050034,1749427842502,-1292.07,0.00021917,2]
[365050036,1749427842512,-440.0,0.00021917,2]
[365050038,1749427842522,-1616.2,0.00021917,2]
[365050041,1749427842532,-500.0,0.00021917,2]
[365050043,1749427842542,-500.0,0.00021917,2]
[365050045,1749427842552,-500.0,0.00021917,2]
[365050047,1749427842561,-581.58,0.00021917,2]
[365050049,1749427842571,-1708.17,0.00021917,2]
[365050051,1749427842582,-734.92,0.00021917,2]
[365050053,1749427842592,-476.22,0.00021917,2]
[365050055,1749427842602,-440.0,0.00021917,2]
[365050057,1749427842612,-814.94,0.00021917,2]
[365050059,1749427842623,-640.58,0.00021917,2]
[365050062,1749427842633,-3000.0,0.0002192,2]
[365050065,1749427842643,-3000.0,0.0002193,2]
[365050068,1749427842652,-3000.0,0.0002194,2]
[365050071,1749427842663,-3000.0,0.0002195,2]
[365050076,1749427842673,-3000.0,0.0002196,2]
[365050078,1749427842683,-3000.0,0.0002197,2]
[365050080,1749427842693,-500.0,0.00021973,2]
[365050082,1749427842702,-500.0,0.00021973,2]
[365050084,1749427842713,-600.0,0.00021973,2]
[365050086,1749427842723,-500.0,0.00021973,2]
[365050088,1749427842733,-3000.0,0.0002198,2]
[365050090,1749427842743,-3000.0,0.0002199,2]
[365050092,1749427842757,-3000.0,0.00022,2]
[365050094,1749427842766,-1158.66,0.00022,7]
[365050096,1749427842775,-50450.77,0.00022,2]
[365050098,1749427842785,-61090.45,0.00022,7]
[365050100,1749427842797,-171.0,0.00022,2]
[365050103,1749427842807,-159.0,0.00022,2]
[365050105,1749427842816,-1575.6933631,0.00022003,6]
[365050107,1749427842828,-3640.778062,0.0002201,2]
[365050109,1749427842838,-695.15,0.00022191,4]
[365050111,1749427842847,-1299.25,0.00022191,4]
[365050113,1749427842857,-581.46,0.00022191,4]
[365050115,1749427842867,-850.36,0.00022191,4]
[365050117,1749427842878,-850.98,0.00022191,4]
[365050119,1749427842888,-871.39,0.00022191,4]
[365050121,1749427842899,-1681.47,0.00022191,4]
[365050123,1749427842909,-827.14,0.00022191,4]
[365050125,1749427842920,-1292.07,0.00022191,4]
[365050128,1749427842930,-440.0,0.00022191,4]
[365050130,1749427842940,-1616.2,0.00022191,4]
[365050133,1749427842961,-1708.17,0.00022191,4]
[365050135,1749427842974,-734.92,0.00022191,4]
[365050137,1749427842984,-476.22,0.00022191,4]
[365050139,1749427842995,-539.37,0.00022191,4]
[365050142,1749427843006,-814.94,0.00022191,4]
[365050144,1749427843016,-640.58,0.00022191,4]
[365050146,1749427843027,-666.95,0.000222,2]
[365050148,1749427843037,-1575.6933631,0.0002221,6]
[365050150,1749427843047,-500.0,0.000223,2]
[365050152,1749427843057,-587.0,0.00022366,2]
[365050154,1749427843068,-467.0,0.00022368,2]
[365050156,1749427843079,-1575.6933631,0.00022417,7]
[365050158,1749427843089,-400.0,0.00022465,2]
[365050160,1749427843100,-400.0,0.00022465,2]
[365050162,1749427843110,-400.0,0.00022465,2]
[365050164,1749427843120,-400.0,0.00022465,2]
[365050166,1749427843130,-400.0,0.00022465,2]
[365050168,1749427843141,-400.0,0.00022465,2]
[365050170,1749427843151,-400.0,0.00022465,2]
[365050173,1749427843161,-400.0,0.00022465,2]
[365050175,1749427843172,-400.0,0.00022465,2]
[365050177,1749427843182,-400.0,0.00022465,2]
[365050179,1749427843192,-400.0,0.00022465,2]
[365050181,1749427843202,-400.0,0.00022465,2]
[365050183,1749427843212,-400.0,0.00022465,2]
[365050185,1749427843222,-695.15,0.00022465,4]
[365050187,1749427843231,-1299.25,0.00022465,4]
[365050189,1749427843242,-581.46,0.00022465,4]
[365050191,1749427843252,-850.36,0.00022465,4]
[365050193,1749427843261,-850.98,0.00022465,4]
[365050195,1749427843271,-871.39,0.00022465,4]
[365050197,1749427843282,-1681.47,0.00022465,4]
[365050200,1749427843292,-827.14,0.00022465,4]
[365050202,1749427843302,-1292.07,0.00022465,4]
[365050204,1749427843312,-440.0,0.00022465,4]
[365050206,1749427843322,-1616.2,0.00022465,4]
[365050209,1749427843333,-1708.17,0.00022465,4]
[365050211,1749427843343,-734.92,0.00022465,4]
[365050213,1749427843353,-476.22,0.00022465,4]
[365050215,1749427843363,-814.94,0.00022465,4]
[365050217,1749427843373,-640.58,0.00022465,4]
[365050219,1749427843384,-1000.0,0.00022521,2]
[365050222,1749427843394,-1200.0,0.00022521,2]
[365050224,1749427843404,-1012.93391595,0.00022521,2]
[365050226,1749427843414,-1575.6933631,0.00022624,7]
[365050228,1749427843423,-364.5816698,0.0002263,2]
[365050230,1749427843433,-500.0,0.00022733,2]
[365050232,1749427843443,-400.0,0.00022739,2]
[365050234,1749427843453,-695.15,0.00022739,4]
[365050236,1749427843463,-1299.25,0.00022739,4]
[365050238,1749427843473,-581.46,0.00022739,4]
[365050240,1749427843483,-850.36,0.00022739,4]
[365050242,1749427843493,-850.98,0.00022739,4]
[365050244,1749427843503,-871.39,0.00022739,4]
[365050247,1749427843513,-1681.47,0.00022739,4]
[365050249,1749427843523,-827.14,0.00022739,4]
[365050251,1749427843535,-1292.07,0.00022739,4]
[365050253,1749427843545,-440.0,0.00022739,4]
[365050255,1749427843555,-1616.2,0.00022739,4]
[365050257,1749427843565,-1708.17,0.00022739,4]
[365050259,1749427843574,-734.92,0.00022739,4]
[365050261,1749427843584,-476.22,0.00022739,4]
[365050263,1749427843593,-814.94,0.00022739,4]
[365050265,1749427843602,-640.58,0.00022739,4]
[365050267,1749427843612,-600.0,0.0002278,2]
[365050269,1749427843622,-1108.630773,0.000228,2]
[365050271,1749427843631,-1575.6933631,0.00022831,8]
[365050273,1749427843642,-503.01712647,0.00022848,2]
[365050276,1749427843651,-236.72530795,0.00022881,2]
[365050278,1749427843660,-151.0,0.00022881,2]
[365050280,1749427843670,-151.0,0.00022881,2]
[365050282,1749427843679,-5000.0,0.00022881,2]
[365050284,1749427843688,-500.0,0.00022881,2]
[365050286,1749427843698,-500.0,0.00022881,2]
[365050288,1749427843708,-207.4,0.00022881,2]
[365050290,1749427843717,-500.0,0.00022881,2]
[365050292,1749427843727,-500.0,0.00022881,2]
[365050294,1749427843737,-500.0,0.00022881,2]
[365050296,1749427843749,-500.0,0.00022881,2]
[365050298,1749427843759,-500.0,0.00022881,2]
[365050300,1749427843769,-500.0,0.00022881,2]
[365050302,1749427843779,-500.0,0.00022881,2]
[365050304,1749427843788,-500.0,0.00022881,2]
[365050306,1749427843798,-500.0,0.00022881,2]
[365050308,1749427843808,-500.0,0.00022881,2]
[365050310,1749427843818,-500.0,0.00022881,2]
[365050312,1749427843827,-500.0,0.00022881,2]
[365050314,1749427843837,-500.0,0.00022881,2]
[365050316,1749427843847,-500.0,0.00022881,2]
[365050319,1749427843857,-405.0,0.00022946,2]
[365050321,1749427843867,-5000.0,0.00023,2]
[365050323,1749427843876,-163.80829244,0.00023013,2]
[365050325,1749427843885,-695.15,0.00023013,4]
[365050327,1749427843895,-1299.25,0.00023013,4]
[365050329,1749427843905,-581.46,0.00023013,4]
[365050331,1749427843915,-850.36,0.00023013,4]
[365050333,1749427843926,-850.98,0.00023013,4]
[365050335,1749427843937,-871.39,0.00023013,4]
[365050337,1749427843947,-1681.47,0.00023013,4]
[365050353,1749427844090,-827.14,0.00023013,4]
[365050356,1749427844101,-440.0,0.00023013,4]
[365050358,1749427844112,-1292.07,0.00023013,4]
[365050360,1749427844122,-1616.2,0.00023013,4]